[Event "Titled Tuesday Blitz March 01 Late 2022"]
[White "Gledura, Benjamin"]
[Black "Kollars, Dmitrij"]
[WhiteFideId "712779"]
[BlackFideId "12909572"]
[WhiteElo "2326"]
[BlackElo "2584"]
[Result "1-0"]
[Round "03"]
[TimeControl "180+1"]
[Date "2022.03.01"]
[WhiteClock "0:00:05"]
[BlackClock "0:00:06"]

1. Nf3 {[%clk 0:03:00]}  d5 {[%clk 0:02:57]} 2. e3 {[%clk 0:03:00]}  Nf6 {[%clk 0:02:56]} 3. g3 {[%clk 0:03:00]}  c5 {[%clk 0:02:51]} 4. Bg2 {[%clk 0:03:00]}  Nc6 {[%clk 0:02:52]} 5. d4 {[%clk 0:02:59]}  Bf5 {[%clk 0:02:49]} 6. O-O {[%clk 0:02:57]}  e6 {[%clk 0:02:46]} 7. b3 {[%clk 0:02:54]}  cxd4 {[%clk 0:02:43]} 8. exd4 {[%clk 0:02:52]}  Be7 {[%clk 0:02:43]} 9. Bb2 {[%clk 0:02:50]}  O-O {[%clk 0:02:42]} 10. Nbd2 {[%clk 0:02:45]}  h6 {[%clk 0:02:41]} 11. Re1 {[%clk 0:02:45]}  Rc8 {[%clk 0:02:40]} 12. a3 {[%clk 0:02:44]}  b5 {[%clk 0:02:39]} 13. c3 {[%clk 0:02:35]}  a5 {[%clk 0:02:37]} 14. b4 {[%clk 0:02:04]}  a4 {[%clk 0:02:37]} 15. Bf1 {[%clk 0:02:03]}  Qb6 {[%clk 0:02:20]} 16. Qe2 {[%clk 0:02:02]}  Na7 {[%clk 0:02:18]} 17. Ne5 {[%clk 0:02:01]}  Rc7 {[%clk 0:02:12]} 18. Nd3 {[%clk 0:02:00]}  Bxd3 {[%clk 0:02:09]} 19. Qxd3 {[%clk 0:02:01]}  Ne8 {[%clk 0:01:56]} 20. Re3 {[%clk 0:01:57]}  Nd6 {[%clk 0:01:55]} 21. Rae1 {[%clk 0:01:57]}  Qc6 {[%clk 0:01:49]} 22. h4 {[%clk 0:01:55]}  Nac8 {[%clk 0:01:48]} 23. Rf3 {[%clk 0:01:12]}  Nb6 {[%clk 0:01:44]} 24. Kh2 {[%clk 0:01:03]}  Rfc8 {[%clk 0:01:43]} 25. Qb1 {[%clk 0:00:52]}  Qd7 {[%clk 0:01:20]} 26. Bd3 {[%clk 0:00:51]}  Nbc4 {[%clk 0:01:17]} 27. Nxc4 {[%clk 0:00:50]}  Nxc4 {[%clk 0:01:18]} 28. Bc1 {[%clk 0:00:46]}  Bf8 {[%clk 0:01:12]} 29. Qc2 {[%clk 0:00:41]}  Rc6 {[%clk 0:01:09]} 30. Qe2 {[%clk 0:00:38]}  Nd6 {[%clk 0:01:07]} 31. Bxb5 {[%clk 0:00:37]}  Nxb5 {[%clk 0:00:47]} 32. Qxb5 {[%clk 0:00:38]}  R6c7 {[%clk 0:00:47]} 33. Qxd7 {[%clk 0:00:36]}  Rxd7 {[%clk 0:00:48]} 34. Bd2 {[%clk 0:00:35]}  h5 {[%clk 0:00:47]} 35. Kg2 {[%clk 0:00:34]}  g6 {[%clk 0:00:47]} 36. Kf1 {[%clk 0:00:33]}  Rc4 {[%clk 0:00:47]} 37. Ke2 {[%clk 0:00:31]}  Rdc7 {[%clk 0:00:48]} 38. Rd3 {[%clk 0:00:28]}  Bd6 {[%clk 0:00:45]} 39. Kd1 {[%clk 0:00:28]}  Kg7 {[%clk 0:00:45]} 40. Kc2 {[%clk 0:00:28]}  Rb7 {[%clk 0:00:45]} 41. Rg1 {[%clk 0:00:26]}  Rc8 {[%clk 0:00:43]} 42. g4 {[%clk 0:00:25]}  hxg4 {[%clk 0:00:40]} 43. Rxg4 {[%clk 0:00:26]}  Rh8 {[%clk 0:00:40]} 44. Bf4 {[%clk 0:00:27]}  Be7 {[%clk 0:00:33]} 45. Rh3 {[%clk 0:00:19]}  Rh5 {[%clk 0:00:32]} 46. Bg5 {[%clk 0:00:17]}  f6 {[%clk 0:00:31]} 47. Bd2 {[%clk 0:00:17]}  f5 {[%clk 0:00:31]} 48. Rg2 {[%clk 0:00:15]}  Bxh4 {[%clk 0:00:16]} 49. Bf4 {[%clk 0:00:13]}  Kf7 {[%clk 0:00:13]} 50. Rgh2 {[%clk 0:00:12]}  Bf6 {[%clk 0:00:10]} 51. Rxh5 {[%clk 0:00:12]}  gxh5 {[%clk 0:00:11]} 52. Rxh5 {[%clk 0:00:12]}  Kg6 {[%clk 0:00:12]} 53. Rh6+ {[%clk 0:00:12]}  Kg7 {[%clk 0:00:12]} 54. Rh3 {[%clk 0:00:13]}  Kg6 {[%clk 0:00:13]} 55. Rg3+ {[%clk 0:00:13]}  Kf7 {[%clk 0:00:13]} 56. Be5 {[%clk 0:00:14]}  Rd7 {[%clk 0:00:08]} 57. f4 {[%clk 0:00:13]}  Rd8 {[%clk 0:00:08]} 58. Bxf6 {[%clk 0:00:12]}  Kxf6 {[%clk 0:00:09]} 59. c4 {[%clk 0:00:12]}  dxc4 {[%clk 0:00:09]} 60. Kc3 {[%clk 0:00:13]}  Rc8 {[%clk 0:00:09]} 61. b5 {[%clk 0:00:13]}  Ke7 {[%clk 0:00:09]} 62. Rg7+ {[%clk 0:00:13]}  Kd6 {[%clk 0:00:09]} 63. b6 {[%clk 0:00:12]}  Rb8 {[%clk 0:00:08]} 64. b7 {[%clk 0:00:13]}  Kd5 {[%clk 0:00:09]} 65. Re7 {[%clk 0:00:12]}  Kd6 {[%clk 0:00:09]} 66. Rf7 {[%clk 0:00:12]}  Kd5 {[%clk 0:00:10]} 67. Rh7 {[%clk 0:00:08]}  Rg8 {[%clk 0:00:09]} 68. Rc7 {[%clk 0:00:08]}  Rb8 {[%clk 0:00:10]} 69. Rc5+ {[%clk 0:00:05]}  Kd6 {[%clk 0:00:10]} 70. Rb5 {[%clk 0:00:05]}  Kc6 {[%clk 0:00:11]} 71. Kxc4 {[%clk 0:00:06]}  Kc7 {[%clk 0:00:07]} 72. Kc5 {[%clk 0:00:06]}  Kd7 {[%clk 0:00:06]} 73. Kb6 {[%clk 0:00:06]}  Rd8 {[%clk 0:00:05]} 74. Ka7 {[%clk 0:00:06]}  Kc6 {[%clk 0:00:05]} 75. Rc5+ {[%clk 0:00:04]}  Kd6 {[%clk 0:00:04]} 76. b8=Q+ {[%clk 0:00:04]}  Rxb8 {[%clk 0:00:05]} 77. Kxb8 {[%clk 0:00:05]}  e5 {[%clk 0:00:06]} 78. Rxe5 {[%clk 0:00:05]} 1-0


[Site "https://www.chess.com"]

[Event "Titled Tuesday Blitz March 01 Late 2022"]
[White "Golubovskis, Maksims"]
[Black "Hardaway, Brewington"]
[WhiteFideId "11608528"]
[BlackFideId "30941849"]
[WhiteElo "2066"]
[BlackElo "1768"]
[Result "1-0"]
[Round "03"]
[TimeControl "180+1"]
[Date "2022.03.02"]
[WhiteClock "0:00:05"]
[BlackClock "0:00:18"]

1. c4 {[%clk 0:02:59]}  Nf6 {[%clk 0:03:00]} 2. g3 {[%clk 0:02:59]}  g6 {[%clk 0:03:00]} 3. Bg2 {[%clk 0:03:00]}  Bg7 {[%clk 0:03:00]} 4. Nc3 {[%clk 0:03:00]}  O-O {[%clk 0:03:01]} 5. Nf3 {[%clk 0:03:01]}  d6 {[%clk 0:03:01]} 6. O-O {[%clk 0:03:01]}  c5 {[%clk 0:03:02]} 7. e4 {[%clk 0:03:02]}  Nc6 {[%clk 0:03:01]} 8. d4 {[%clk 0:03:02]}  cxd4 {[%clk 0:03:02]} 9. Nxd4 {[%clk 0:03:03]}  Bg4 {[%clk 0:03:01]} 10. f3 {[%clk 0:02:39]}  Nxd4 {[%clk 0:02:50]} 11. Qxd4 {[%clk 0:02:34]}  Be6 {[%clk 0:02:45]} 12. Qd3 {[%clk 0:02:24]}  Rc8 {[%clk 0:02:44]} 13. b3 {[%clk 0:02:23]}  b5 {[%clk 0:02:44]} 14. Nxb5 {[%clk 0:02:16]}  Nxe4 {[%clk 0:02:29]} 15. Rb1 {[%clk 0:02:12]}  Nc5 {[%clk 0:02:27]} 16. Qe2 {[%clk 0:02:08]}  Bf5 {[%clk 0:02:25]} 17. Bg5 {[%clk 0:02:04]}  Bxb1 {[%clk 0:02:05]} 18. Rxb1 {[%clk 0:01:56]}  Ne6 {[%clk 0:01:56]} 19. Be3 {[%clk 0:01:53]}  a6 {[%clk 0:01:54]} 20. Na7 {[%clk 0:01:51]}  Rc7 {[%clk 0:01:49]} 21. f4 {[%clk 0:01:45]}  Nd4 {[%clk 0:01:47]} 22. Qd3 {[%clk 0:01:43]}  e5 {[%clk 0:01:44]} 23. Bxd4 {[%clk 0:01:41]}  exd4 {[%clk 0:01:44]} 24. Nc6 {[%clk 0:01:42]}  Qf6 {[%clk 0:01:43]} 25. Re1 {[%clk 0:01:40]}  h5 {[%clk 0:01:36]} 26. Nb4 {[%clk 0:01:39]}  Rc5 {[%clk 0:01:33]} 27. Nd5 {[%clk 0:01:18]}  Qd8 {[%clk 0:01:26]} 28. b4 {[%clk 0:01:16]}  Rxd5 {[%clk 0:01:22]} 29. Bxd5 {[%clk 0:01:15]}  Kh8 {[%clk 0:01:13]} 30. Kg2 {[%clk 0:01:05]}  a5 {[%clk 0:01:06]} 31. a3 {[%clk 0:01:04]}  axb4 {[%clk 0:01:06]} 32. axb4 {[%clk 0:01:04]}  Qb6 {[%clk 0:01:03]} 33. b5 {[%clk 0:01:04]}  Qa5 {[%clk 0:01:02]} 34. Re2 {[%clk 0:01:04]}  Bf6 {[%clk 0:00:52]} 35. f5 {[%clk 0:00:43]}  Kg7 {[%clk 0:00:51]} 36. fxg6 {[%clk 0:00:40]}  fxg6 {[%clk 0:00:52]} 37. Re6 {[%clk 0:00:36]}  Qa2+ {[%clk 0:00:45]} 38. Re2 {[%clk 0:00:35]}  Qa5 {[%clk 0:00:39]} 39. Be4 {[%clk 0:00:33]}  Be5 {[%clk 0:00:21]} 40. Bxg6 {[%clk 0:00:30]}  Qa1 {[%clk 0:00:22]} 41. Rf2 {[%clk 0:00:17]}  Rxf2+ {[%clk 0:00:18]} 42. Kxf2 {[%clk 0:00:18]}  Qb2+ {[%clk 0:00:18]} 43. Kg1 {[%clk 0:00:17]}  Qc1+ {[%clk 0:00:18]} 44. Kg2 {[%clk 0:00:17]}  h4 {[%clk 0:00:18]} 45. gxh4 {[%clk 0:00:16]}  Qf4 {[%clk 0:00:17]} 46. h5 {[%clk 0:00:15]}  Qxh2+ {[%clk 0:00:17]} 47. Kf3 {[%clk 0:00:16]}  Qg3+ {[%clk 0:00:16]} 48. Ke4 {[%clk 0:00:16]}  Qg2+ {[%clk 0:00:17]} 49. Qf3 {[%clk 0:00:13]}  Qc2+ {[%clk 0:00:16]} 50. Kd5 {[%clk 0:00:14]}  Qa4 {[%clk 0:00:14]} 51. Qf7+ {[%clk 0:00:13]}  Kh6 {[%clk 0:00:15]} 52. Qf8+ {[%clk 0:00:13]}  Kg5 {[%clk 0:00:16]} 53. Qf5+ {[%clk 0:00:13]}  Kh6 {[%clk 0:00:16]} 54. Qf8+ {[%clk 0:00:13]}  Kg5 {[%clk 0:00:17]} 55. Qe7+ {[%clk 0:00:09]}  Kf4 {[%clk 0:00:17]} 56. Qh4+ {[%clk 0:00:08]}  Ke3 {[%clk 0:00:17]} 57. Qe4+ {[%clk 0:00:07]}  Kd2 {[%clk 0:00:15]} 58. Qd3+ {[%clk 0:00:07]}  Ke1 {[%clk 0:00:15]} 59. Qb1+ {[%clk 0:00:05]}  Kf2 {[%clk 0:00:15]} 60. Qc2+ {[%clk 0:00:05]}  Kg3 {[%clk 0:00:16]} 61. Qxa4 {[%clk 0:00:05]}  d3 {[%clk 0:00:13]} 62. b6 {[%clk 0:00:06]}  d2 {[%clk 0:00:13]} 63. Qd1 {[%clk 0:00:06]}  Kh4 {[%clk 0:00:13]} 64. b7 {[%clk 0:00:07]}  Kg5 {[%clk 0:00:14]} 65. b8=Q {[%clk 0:00:07]}  Kh6 {[%clk 0:00:15]} 66. Qxd6 {[%clk 0:00:07]}  Bf6 {[%clk 0:00:16]} 67. Qf4+ {[%clk 0:00:06]}  Bg5 {[%clk 0:00:17]} 68. Qxg5+ {[%clk 0:00:05]}  Kg7 {[%clk 0:00:17]} 69. Bf5+ {[%clk 0:00:05]}  Kh8 {[%clk 0:00:18]} 70. Qf6+ {[%clk 0:00:05]}  Kg8 {[%clk 0:00:18]} 71. Qg1# {[%clk 0:00:05]} 1-0


[Site "https://www.chess.com"]

[Event "Titled Tuesday Blitz March 01 Late 2022"]
[White "Grischuk, Alexander"]
[Black "Ibadov, Dashgyn"]
[WhiteFideId "4126025"]
[BlackFideId "24107514"]
[WhiteElo "2762"]
[BlackElo "2084"]
[Result "1-0"]
[Round "03"]
[TimeControl "180+1"]
[Date "2022.03.01"]
[WhiteClock "0:00:56"]
[BlackClock "0:00:01"]

1. e4 {[%clk 0:03:00]}  e5 {[%clk 0:02:57]} 2. Nf3 {[%clk 0:02:58]}  Nc6 {[%clk 0:02:57]} 3. Bb5 {[%clk 0:02:58]}  a6 {[%clk 0:02:58]} 4. Ba4 {[%clk 0:02:58]}  Nf6 {[%clk 0:02:58]} 5. O-O {[%clk 0:02:59]}  Be7 {[%clk 0:02:54]} 6. d3 {[%clk 0:02:59]}  b5 {[%clk 0:02:54]} 7. Bb3 {[%clk 0:02:59]}  d6 {[%clk 0:02:52]} 8. c3 {[%clk 0:02:58]}  O-O {[%clk 0:02:52]} 9. h3 {[%clk 0:02:57]}  Na5 {[%clk 0:02:52]} 10. Bc2 {[%clk 0:02:58]}  c5 {[%clk 0:02:52]} 11. d4 {[%clk 0:02:59]}  cxd4 {[%clk 0:02:28]} 12. cxd4 {[%clk 0:02:59]}  exd4 {[%clk 0:02:25]} 13. Nxd4 {[%clk 0:03:00]}  Bb7 {[%clk 0:02:25]} 14. Nf5 {[%clk 0:02:48]}  Re8 {[%clk 0:01:44]} 15. Bg5 {[%clk 0:02:46]}  h6 {[%clk 0:01:21]} 16. Bh4 {[%clk 0:02:44]}  Nc4 {[%clk 0:01:05]} 17. Qd4 {[%clk 0:02:35]}  Ne5 {[%clk 0:01:01]} 18. Nc3 {[%clk 0:02:32]}  Ng6 {[%clk 0:00:58]} 19. Nxe7+ {[%clk 0:02:09]}  Qxe7 {[%clk 0:00:54]} 20. Bxf6 {[%clk 0:02:09]}  Qxf6 {[%clk 0:00:52]} 21. Qxf6 {[%clk 0:02:10]}  gxf6 {[%clk 0:00:52]} 22. Rad1 {[%clk 0:01:53]}  b4 {[%clk 0:00:50]} 23. Nd5 {[%clk 0:01:53]}  Bxd5 {[%clk 0:00:43]} 24. Rxd5 {[%clk 0:01:54]}  Rac8 {[%clk 0:00:41]} 25. Bb1 {[%clk 0:01:40]}  Rc6 {[%clk 0:00:17]} 26. Rfd1 {[%clk 0:01:39]}  Re6 {[%clk 0:00:17]} 27. g3 {[%clk 0:01:35]}  Ne7 {[%clk 0:00:15]} 28. Kg2 {[%clk 0:01:33]}  Rb6 {[%clk 0:00:13]} 29. R5d4 {[%clk 0:01:21]}  a5 {[%clk 0:00:12]} 30. Bc2 {[%clk 0:01:20]}  Nc8 {[%clk 0:00:08]} 31. Bb3 {[%clk 0:01:19]}  Re5 {[%clk 0:00:08]} 32. Rc1 {[%clk 0:01:16]}  Ne7 {[%clk 0:00:06]} 33. Rc7 {[%clk 0:01:14]}  Kf8 {[%clk 0:00:06]} 34. Rd7 {[%clk 0:01:05]}  Rc5 {[%clk 0:00:02]} 35. R4xd6 {[%clk 0:01:01]}  Rxd6 {[%clk 0:00:03]} 36. Rxd6 {[%clk 0:01:02]}  Ke8 {[%clk 0:00:03]} 37. Rxf6 {[%clk 0:01:01]}  Ng6 {[%clk 0:00:01]} 38. Bxf7+ {[%clk 0:00:56]} 1-0


[Site "https://www.chess.com"]

[Event "Titled Tuesday Blitz March 01 Late 2022"]
[White "Guz, Ari"]
[Black "Lopez Perdomo, Juan David"]
[WhiteFideId "2825759"]
[BlackFideId "4405137"]
[WhiteElo "1913"]
[BlackElo "1997"]
[Result "1-0"]
[Round "03"]
[TimeControl "180+1"]
[Date "2022.03.02"]
[WhiteClock "0:00:59"]
[BlackClock "0:00:03"]

1. b3 {[%clk 0:03:00]}  e6 {[%clk 0:02:59]} 2. Bb2 {[%clk 0:03:01]}  d5 {[%clk 0:03:00]} 3. Nf3 {[%clk 0:03:01]}  Nf6 {[%clk 0:03:01]} 4. g3 {[%clk 0:03:01]}  Be7 {[%clk 0:03:02]} 5. Bg2 {[%clk 0:03:02]}  O-O {[%clk 0:03:03]} 6. O-O {[%clk 0:03:02]}  c5 {[%clk 0:03:03]} 7. c4 {[%clk 0:03:02]}  d4 {[%clk 0:03:02]} 8. e3 {[%clk 0:03:02]}  dxe3 {[%clk 0:02:55]} 9. dxe3 {[%clk 0:02:58]}  Nc6 {[%clk 0:02:55]} 10. Nc3 {[%clk 0:02:57]}  Nb4 {[%clk 0:02:39]} 11. Qe2 {[%clk 0:02:56]}  Qd3 {[%clk 0:02:37]} 12. Rfd1 {[%clk 0:02:47]}  Qxe2 {[%clk 0:02:26]} 13. Nxe2 {[%clk 0:02:46]}  Rd8 {[%clk 0:02:03]} 14. Ne5 {[%clk 0:02:35]}  Rxd1+ {[%clk 0:01:37]} 15. Rxd1 {[%clk 0:02:32]}  Nxa2 {[%clk 0:01:38]} 16. g4 {[%clk 0:02:05]}  h6 {[%clk 0:01:38]} 17. h4 {[%clk 0:01:56]}  a5 {[%clk 0:01:14]} 18. Ra1 {[%clk 0:01:44]}  Nb4 {[%clk 0:01:12]} 19. Nc3 {[%clk 0:01:41]}  Nd7 {[%clk 0:01:10]} 20. Nxd7 {[%clk 0:01:25]}  Bxd7 {[%clk 0:01:11]} 21. h5 {[%clk 0:01:20]}  Ra7 {[%clk 0:01:00]} 22. Nb5 {[%clk 0:01:12]}  Bxb5 {[%clk 0:01:00]} 23. cxb5 {[%clk 0:01:13]}  b6 {[%clk 0:00:58]} 24. Rd1 {[%clk 0:01:08]}  a4 {[%clk 0:00:23]} 25. bxa4 {[%clk 0:01:05]}  Rxa4 {[%clk 0:00:23]} 26. Rd7 {[%clk 0:01:06]}  Bf8 {[%clk 0:00:23]} 27. Rd8 {[%clk 0:01:02]}  Ra2 {[%clk 0:00:11]} 28. Be5 {[%clk 0:01:00]}  f6 {[%clk 0:00:11]} 29. Bd6 {[%clk 0:01:00]}  Ra1+ {[%clk 0:00:04]} 30. Kh2 {[%clk 0:00:59]}  Kf7 {[%clk 0:00:03]} 31. Rxf8# {[%clk 0:00:59]} 1-0


[Site "https://www.chess.com"]

[Event "Titled Tuesday Blitz March 01 Late 2022"]
[White "Hakemi, Arman"]
[Black "Saraci, Nderim"]
[WhiteFideId "22520805"]
[BlackFideId "6351921"]
[WhiteElo "2208"]
[BlackElo "2573"]
[Result "1/2-1/2"]
[Round "03"]
[TimeControl "180+1"]
[Date "2022.03.01"]
[WhiteClock "0:00:10"]
[BlackClock "0:00:07"]

1. e4 {[%clk 0:02:57]}  c5 {[%clk 0:02:59]} 2. Nf3 {[%clk 0:02:57]}  e6 {[%clk 0:03:00]} 3. c3 {[%clk 0:02:57]}  Nf6 {[%clk 0:02:59]} 4. e5 {[%clk 0:02:57]}  Nd5 {[%clk 0:02:59]} 5. a3 {[%clk 0:02:58]}  Nc6 {[%clk 0:02:58]} 6. d4 {[%clk 0:02:56]}  cxd4 {[%clk 0:02:58]} 7. c4 {[%clk 0:02:47]}  Nde7 {[%clk 0:02:56]} 8. Bg5 {[%clk 0:02:42]}  h6 {[%clk 0:02:56]} 9. Bh4 {[%clk 0:02:42]}  Qc7 {[%clk 0:02:54]} 10. Bg3 {[%clk 0:02:40]}  Nf5 {[%clk 0:02:54]} 11. Qe2 {[%clk 0:02:32]}  Nxg3 {[%clk 0:02:45]} 12. hxg3 {[%clk 0:02:33]}  d6 {[%clk 0:02:45]} 13. exd6 {[%clk 0:02:32]}  Bxd6 {[%clk 0:02:45]} 14. Nbd2 {[%clk 0:02:32]}  Be7 {[%clk 0:02:43]} 15. b4 {[%clk 0:02:24]}  Bf6 {[%clk 0:02:35]} 16. Ne4 {[%clk 0:02:24]}  Bd7 {[%clk 0:02:31]} 17. c5 {[%clk 0:02:19]}  Be7 {[%clk 0:02:27]} 18. Qc4 {[%clk 0:02:19]}  O-O-O {[%clk 0:02:20]} 19. Bd3 {[%clk 0:02:14]}  f5 {[%clk 0:02:15]} 20. Nd6+ {[%clk 0:02:15]}  Bxd6 {[%clk 0:02:14]} 21. cxd6 {[%clk 0:02:15]}  Qb6 {[%clk 0:01:52]} 22. b5 {[%clk 0:02:16]}  Qa5+ {[%clk 0:01:52]} 23. Kf1 {[%clk 0:02:16]}  Kb8 {[%clk 0:01:48]} 24. bxc6 {[%clk 0:02:15]}  Bxc6 {[%clk 0:01:49]} 25. Kg1 {[%clk 0:02:04]}  Rxd6 {[%clk 0:01:44]} 26. Kh2 {[%clk 0:02:03]}  e5 {[%clk 0:01:38]} 27. Bxf5 {[%clk 0:01:48]}  Rf8 {[%clk 0:01:20]} 28. Bh3 {[%clk 0:01:43]}  Rdf6 {[%clk 0:01:00]} 29. Rhc1 {[%clk 0:01:35]}  a6 {[%clk 0:00:52]} 30. Rab1 {[%clk 0:01:34]}  Ka7 {[%clk 0:00:30]} 31. Qc5+ {[%clk 0:01:30]}  Qxc5 {[%clk 0:00:29]} 32. Rxc5 {[%clk 0:01:30]}  Bxf3 {[%clk 0:00:13]} 33. gxf3 {[%clk 0:01:31]}  Rxf3 {[%clk 0:00:13]} 34. Bg2 {[%clk 0:01:30]}  R3f7 {[%clk 0:00:13]} 35. Rxe5 {[%clk 0:01:30]}  Rd8 {[%clk 0:00:12]} 36. Rd1 {[%clk 0:01:24]}  Rxf2 {[%clk 0:00:11]} 37. Re7 {[%clk 0:01:25]}  Rb2 {[%clk 0:00:11]} 38. Rd3 {[%clk 0:01:23]}  g5 {[%clk 0:00:10]} 39. Rg7 {[%clk 0:01:22]}  Rb6 {[%clk 0:00:10]} 40. Kh3 {[%clk 0:01:22]}  Rdd6 {[%clk 0:00:10]} 41. Be4 {[%clk 0:01:21]}  Rb2 {[%clk 0:00:10]} 42. Kg4 {[%clk 0:01:20]}  a5 {[%clk 0:00:10]} 43. a4 {[%clk 0:01:19]}  Rb4 {[%clk 0:00:10]} 44. Kh5 {[%clk 0:01:18]}  Ka6 {[%clk 0:00:10]} 45. g4 {[%clk 0:01:18]}  b5 {[%clk 0:00:09]} 46. axb5+ {[%clk 0:01:18]}  Kxb5 {[%clk 0:00:10]} 47. Bg6 {[%clk 0:01:09]}  a4 {[%clk 0:00:10]} 48. Kxh6 {[%clk 0:01:08]}  Rb3 {[%clk 0:00:10]} 49. Rd1 {[%clk 0:00:52]}  d3 {[%clk 0:00:10]} 50. Kxg5 {[%clk 0:00:52]}  d2 {[%clk 0:00:10]} 51. Rb7+ {[%clk 0:00:52]}  Kc4 {[%clk 0:00:10]} 52. Bf7+ {[%clk 0:00:52]}  Kc3 {[%clk 0:00:10]} 53. Bxb3 {[%clk 0:00:52]}  axb3 {[%clk 0:00:11]} 54. Rc7+ {[%clk 0:00:47]}  Kd3 {[%clk 0:00:10]} 55. Rb1 {[%clk 0:00:38]}  Ke2 {[%clk 0:00:09]} 56. Re7+ {[%clk 0:00:39]}  Kf2 {[%clk 0:00:10]} 57. Rb7 {[%clk 0:00:33]}  Rd3 {[%clk 0:00:06]} 58. Kf4 {[%clk 0:00:23]}  Ke2 {[%clk 0:00:06]} 59. Ke4 {[%clk 0:00:15]}  Re3+ {[%clk 0:00:06]} 60. Kd4 {[%clk 0:00:16]}  Rd3+ {[%clk 0:00:07]} 61. Kc4 {[%clk 0:00:17]}  d1=Q {[%clk 0:00:07]} 62. Rxd1 {[%clk 0:00:16]}  Rxd1 {[%clk 0:00:08]} 63. g5 {[%clk 0:00:11]}  Rg1 {[%clk 0:00:07]} 64. Rxb3 {[%clk 0:00:09]}  Rxg5 {[%clk 0:00:07]} 65. Rb5 {[%clk 0:00:09]}  Rxb5 {[%clk 0:00:07]} 66. Kxb5 {[%clk 0:00:10]} 1/2-1/2


[Site "https://www.chess.com"]

[Event "Titled Tuesday Blitz March 01 Late 2022"]
[White "Hjartarson, Johann"]
[Black "Moral Garcia, Serafin"]
[WhiteFideId "2300044"]
[BlackFideId "2201925"]
[WhiteElo "2484"]
[BlackElo "2228"]
[Result "1-0"]
[Round "03"]
[TimeControl "180+1"]
[Date "2022.03.02"]
[WhiteClock "0:00:47"]
[BlackClock "0:00:29"]

1. e4 {[%clk 0:03:00]}  e5 {[%clk 0:02:37]} 2. Nf3 {[%clk 0:02:59]}  Nc6 {[%clk 0:02:37]} 3. Bb5 {[%clk 0:02:58]}  a6 {[%clk 0:02:37]} 4. Ba4 {[%clk 0:02:58]}  Nf6 {[%clk 0:02:37]} 5. O-O {[%clk 0:02:58]}  Be7 {[%clk 0:02:36]} 6. Re1 {[%clk 0:02:57]}  b5 {[%clk 0:02:36]} 7. Bb3 {[%clk 0:02:57]}  d6 {[%clk 0:02:37]} 8. c3 {[%clk 0:02:56]}  O-O {[%clk 0:02:37]} 9. d4 {[%clk 0:02:56]}  Bg4 {[%clk 0:02:36]} 10. d5 {[%clk 0:02:56]}  Na5 {[%clk 0:02:34]} 11. Bc2 {[%clk 0:02:56]}  Qc8 {[%clk 0:02:34]} 12. h3 {[%clk 0:02:55]}  Bd7 {[%clk 0:02:32]} 13. Nbd2 {[%clk 0:02:55]}  c6 {[%clk 0:02:32]} 14. dxc6 {[%clk 0:02:53]}  Qxc6 {[%clk 0:02:32]} 15. Nf1 {[%clk 0:02:52]}  h6 {[%clk 0:02:27]} 16. Ng3 {[%clk 0:02:51]}  Rac8 {[%clk 0:01:57]} 17. Nh4 {[%clk 0:02:47]}  Rfd8 {[%clk 0:01:51]} 18. Nhf5 {[%clk 0:02:46]}  Bf8 {[%clk 0:01:50]} 19. Qf3 {[%clk 0:02:44]}  Nh7 {[%clk 0:01:48]} 20. Nh5 {[%clk 0:02:36]}  Bxf5 {[%clk 0:01:39]} 21. Qxf5 {[%clk 0:02:35]}  g6 {[%clk 0:01:36]} 22. Qg4 {[%clk 0:02:33]}  Kh8 {[%clk 0:01:31]} 23. Ng3 {[%clk 0:02:30]}  Qd7 {[%clk 0:01:31]} 24. Qf3 {[%clk 0:02:12]}  Qe6 {[%clk 0:01:21]} 25. a4 {[%clk 0:02:03]}  Nc4 {[%clk 0:01:20]} 26. axb5 {[%clk 0:02:02]}  axb5 {[%clk 0:01:20]} 27. Ra7 {[%clk 0:02:01]}  Rd7 {[%clk 0:01:18]} 28. Rxd7 {[%clk 0:01:56]}  Qxd7 {[%clk 0:01:18]} 29. Bd3 {[%clk 0:01:49]}  Qe6 {[%clk 0:01:10]} 30. Qe2 {[%clk 0:01:44]}  h5 {[%clk 0:01:02]} 31. Nf1 {[%clk 0:01:41]}  Be7 {[%clk 0:01:00]} 32. Ne3 {[%clk 0:01:40]}  Bg5 {[%clk 0:00:58]} 33. Nd5 {[%clk 0:01:31]}  Bxc1 {[%clk 0:00:56]} 34. Rxc1 {[%clk 0:01:31]}  Nf6 {[%clk 0:00:57]} 35. Nxf6 {[%clk 0:01:16]}  Qxf6 {[%clk 0:00:54]} 36. Ra1 {[%clk 0:01:13]}  Qe6 {[%clk 0:00:42]} 37. Ra6 {[%clk 0:01:08]}  Qd7 {[%clk 0:00:38]} 38. b3 {[%clk 0:01:06]}  Qb7 {[%clk 0:00:38]} 39. Qa2 {[%clk 0:00:58]}  Nb6 {[%clk 0:00:32]} 40. Ra7 {[%clk 0:00:54]}  Qc6 {[%clk 0:00:32]} 41. Rxf7 {[%clk 0:00:52]}  Ra8 {[%clk 0:00:32]} 42. Qd2 {[%clk 0:00:50]}  Rg8 {[%clk 0:00:29]} 43. Qh6# {[%clk 0:00:47]} 1-0


[Site "https://www.chess.com"]

[Event "Titled Tuesday Blitz March 01 Late 2022"]
[White "Ibarra Jerez, Jose Carlos"]
[Black "Golubev, Mikhail"]
[WhiteFideId "2226332"]
[BlackFideId "14100983"]
[WhiteElo "2626"]
[BlackElo "2374"]
[Result "1-0"]
[Round "03"]
[TimeControl "180+1"]
[Date "2022.03.01"]
[WhiteClock "0:00:59"]
[BlackClock "0:00:23"]

1. Nf3 {[%clk 0:03:00]}  d6 {[%clk 0:02:58]} 2. e4 {[%clk 0:02:59]}  c5 {[%clk 0:02:55]} 3. Bb5+ {[%clk 0:02:56]}  Bd7 {[%clk 0:02:54]} 4. Bxd7+ {[%clk 0:02:56]}  Qxd7 {[%clk 0:02:54]} 5. c4 {[%clk 0:02:55]}  g6 {[%clk 0:02:54]} 6. Nc3 {[%clk 0:02:54]}  Bg7 {[%clk 0:02:54]} 7. d4 {[%clk 0:02:55]}  cxd4 {[%clk 0:02:53]} 8. Nxd4 {[%clk 0:02:56]}  Nf6 {[%clk 0:02:53]} 9. f3 {[%clk 0:02:55]}  O-O {[%clk 0:02:50]} 10. Be3 {[%clk 0:02:54]}  Nc6 {[%clk 0:02:48]} 11. O-O {[%clk 0:02:53]}  a6 {[%clk 0:02:48]} 12. Qd3 {[%clk 0:02:48]}  Rfb8 {[%clk 0:02:47]} 13. a4 {[%clk 0:02:34]}  Ne5 {[%clk 0:02:17]} 14. Qe2 {[%clk 0:02:33]}  Rc8 {[%clk 0:02:12]} 15. b3 {[%clk 0:02:28]}  e6 {[%clk 0:02:04]} 16. Rfd1 {[%clk 0:02:13]}  d5 {[%clk 0:01:24]} 17. Nc2 {[%clk 0:01:56]}  Qc7 {[%clk 0:01:02]} 18. exd5 {[%clk 0:01:48]}  exd5 {[%clk 0:01:02]} 19. Nxd5 {[%clk 0:01:47]}  Nxd5 {[%clk 0:01:02]} 20. Rxd5 {[%clk 0:01:48]}  Nxc4 {[%clk 0:00:47]} 21. bxc4 {[%clk 0:01:18]}  Bxa1 {[%clk 0:00:44]} 22. Nxa1 {[%clk 0:01:19]}  Qxc4 {[%clk 0:00:44]} 23. Rd8+ {[%clk 0:01:16]}  Rxd8 {[%clk 0:00:38]} 24. Qxc4 {[%clk 0:01:16]}  Rd1+ {[%clk 0:00:38]} 25. Kf2 {[%clk 0:01:15]}  Rxa1 {[%clk 0:00:38]} 26. Bd4 {[%clk 0:01:13]}  Rd1 {[%clk 0:00:31]} 27. Bf6 {[%clk 0:01:02]}  Re8 {[%clk 0:00:23]} 28. Qf4 {[%clk 0:00:59]} 1-0


[Site "https://www.chess.com"]